[Event "Early-Titled-Tuesday-Blitz-February-06-2024"]
[Site "Chess.com"]
[Date "2024.02.06"]
[Round "2"]
[White "Andrey_Klymchuk"]
[Black "Nf3c5"]
[Result "0-1"]
[WhiteElo "2770"]
[BlackElo "2573"]
[TimeControl "180+1"]
[EndTime "8:17:06 PST"]
[Termination "Nf3c5 won by checkmate"]

1. e4 {[%clk 0:03:00.9]} 1... e5 {[%clk 0:02:24.7]} 2. Nf3 {[%clk 0:02:58.5]}
2... Nc6 {[%clk 0:02:25.1]} 3. Bb5 {[%clk 0:02:58]} 3... Nf6 {[%clk 0:02:24.3]}
4. Qe2 {[%clk 0:02:56.5]} 4... Bd6 {[%clk 0:02:17.5]} 5. O-O {[%clk 0:02:53.5]}
5... O-O {[%clk 0:02:17.2]} 6. c3 {[%clk 0:02:50.6]} 6... Re8 {[%clk 0:02:14.1]}
7. Rd1 {[%clk 0:02:45.7]} 7... a6 {[%clk 0:02:07.4]} 8. Ba4 {[%clk 0:02:44.3]}
8... Bf8 {[%clk 0:01:55.7]} 9. d3 {[%clk 0:02:42.3]} 9... h6 {[%clk 0:01:51.7]}
10. Nbd2 {[%clk 0:02:41.2]} 10... b5 {[%clk 0:01:45]} 11. Bc2 {[%clk 0:02:38.7]}
11... d5 {[%clk 0:01:43.7]} 12. Nf1 {[%clk 0:02:22.6]} 12... Rb8 {[%clk
0:01:31.1]} 13. a3 {[%clk 0:02:19.6]} 13... Be6 {[%clk 0:01:17.9]} 14. b4 {[%clk
0:02:15.8]} 14... g6 {[%clk 0:01:10.2]} 15. Bb2 {[%clk 0:02:07.2]} 15... Bg7
{[%clk 0:01:09.9]} 16. N1d2 {[%clk 0:01:58]} 16... Nh5 {[%clk 0:01:09.6]} 17. g3
{[%clk 0:01:50.8]} 17... Bg4 {[%clk 0:01:02.7]} 18. Nf1 {[%clk 0:01:29.2]} 18...
d4 {[%clk 0:00:56.5]} 19. Bb3 {[%clk 0:01:23.7]} 19... Qd7 {[%clk 0:00:55.4]}
20. Rac1 {[%clk 0:01:22]} 20... Nd8 {[%clk 0:00:49.1]} 21. cxd4 {[%clk
0:01:18.6]} 21... exd4 {[%clk 0:00:49.1]} 22. h4 {[%clk 0:01:02.6]} 22... Ne6
{[%clk 0:00:47.4]} 23. N1h2 {[%clk 0:01:01.9]} 23... Nef4 {[%clk 0:00:41]} 24.
Qd2 {[%clk 0:00:43.2]} 24... Bxf3 {[%clk 0:00:39]} 25. Nxf3 {[%clk 0:00:43.1]}
25... Qh3 {[%clk 0:00:38.6]} 26. Ne1 {[%clk 0:00:40.4]} 26... Be5 {[%clk
0:00:34.6]} 27. Rc5 {[%clk 0:00:37.7]} 27... Nxg3 {[%clk 0:00:34.2]} 28. fxg3
{[%clk 0:00:38]} 28... Qxg3+ {[%clk 0:00:34.8]} 29. Ng2 {[%clk 0:00:34.3]} 29...
Nh3+ {[%clk 0:00:30.3]} 30. Kf1 {[%clk 0:00:32.5]} 30... Qh2 {[%clk 0:00:22.2]}
31. Rxe5 {[%clk 0:00:19.9]} 31... Rxe5 {[%clk 0:00:20.1]} 32. Qxh6 {[%clk
0:00:18.2]} 32... Qg1+ {[%clk 0:00:19.3]} 33. Ke2 {[%clk 0:00:18.6]} 33... Qxg2+
{[%clk 0:00:19.9]} 34. Ke1 {[%clk 0:00:19.1]} 34... Qf2# {[%clk 0:00:20.2]} 0-1

[Event "Early-Titled-Tuesday-Blitz-February-06-2024"]
[Site "Chess.com"]
[Date "2024.02.06"]
[Round "2"]
[White "Djager97"]
[Black "Zohid6"]
[Result "0-1"]
[WhiteElo "2590"]
[BlackElo "2869"]
[TimeControl "180+1"]
[EndTime "8:17:07 PST"]
[Termination "Zohid6 won by resignation"]

1. e4 {[%clk 0:03:00.9]} 1... e5 {[%clk 0:02:57.1]} 2. Nf3 {[%clk 0:03:00.6]}
2... Nf6 {[%clk 0:02:56.8]} 3. Nc3 {[%clk 0:02:58.9]} 3... Nc6 {[%clk
0:02:55.8]} 4. d4 {[%clk 0:02:56]} 4... exd4 {[%clk 0:02:55.1]} 5. Nxd4 {[%clk
0:02:56.9]} 5... Bb4 {[%clk 0:02:54.8]} 6. Nxc6 {[%clk 0:02:57.2]} 6... bxc6
{[%clk 0:02:55.7]} 7. Bd3 {[%clk 0:02:57.1]} 7... d5 {[%clk 0:02:55.9]} 8. exd5
{[%clk 0:02:57.7]} 8... O-O {[%clk 0:02:55.9]} 9. O-O {[%clk 0:02:57.3]} 9...
cxd5 {[%clk 0:02:55.7]} 10. h3 {[%clk 0:02:56.2]} 10... c6 {[%clk 0:02:55.2]}
11. Qf3 {[%clk 0:02:55.7]} 11... Bd6 {[%clk 0:02:54.5]} 12. Bg5 {[%clk 0:02:50]}
12... Rb8 {[%clk 0:02:53.8]} 13. b3 {[%clk 0:02:42.6]} 13... h6 {[%clk
0:02:53.6]} 14. Bxf6 {[%clk 0:02:42]} 14... Qxf6 {[%clk 0:02:54.5]} 15. Qxf6
{[%clk 0:02:41.9]} 15... gxf6 {[%clk 0:02:55.4]} 16. Ne2 {[%clk 0:02:34.3]}
16... c5 {[%clk 0:02:50.7]} 17. c4 {[%clk 0:02:29.6]} 17... d4 {[%clk
0:02:50.6]} 18. Ng3 {[%clk 0:02:21.4]} 18... Bxg3 {[%clk 0:02:37.5]} 19. fxg3
{[%clk 0:02:20.4]} 19... Kg7 {[%clk 0:02:38]} 20. Rf4 {[%clk 0:02:10.3]} 20...
Re8 {[%clk 0:02:31.2]} 21. Raf1 {[%clk 0:02:08.9]} 21... Rb6 {[%clk 0:02:29.8]}
22. g4 {[%clk 0:01:40.6]} 22... Re3 {[%clk 0:02:27.4]} 23. R4f3 {[%clk
0:01:34.7]} 23... Re5 {[%clk 0:02:18.3]} 24. Kf2 {[%clk 0:01:21.1]} 24... a5
{[%clk 0:02:18]} 25. Re1 {[%clk 0:01:11.1]} 25... a4 {[%clk 0:02:17.5]} 26. Bc2
{[%clk 0:01:08.7]} 26... a3 {[%clk 0:02:16.1]} 27. Re2 {[%clk 0:00:45.2]} 27...
Bb7 {[%clk 0:02:04.2]} 28. Rf5 {[%clk 0:00:39]} 28... Rbe6 {[%clk 0:02:03.7]}
29. Bd3 {[%clk 0:00:35]} 29... Re3 {[%clk 0:01:20.5]} 30. Rd2 {[%clk 0:00:35]}
30... R6e5 {[%clk 0:01:14.9]} 31. Be2 {[%clk 0:00:35.4]} 31... Rc3 {[%clk
0:01:12.9]} 32. Bf3 {[%clk 0:00:25.2]} 32... Rxf5 {[%clk 0:01:09.7]} 33. gxf5
{[%clk 0:00:24.6]} 33... Bxf3 {[%clk 0:01:08.2]} 34. gxf3 {[%clk 0:00:25.5]}
34... h5 {[%clk 0:01:08.6]} 35. h4 {[%clk 0:00:20.3]} 35... Kf8 {[%clk
0:01:08.3]} 36. Kg3 {[%clk 0:00:11.2]} 36... Ke7 {[%clk 0:01:06.9]} 37. Kf4
{[%clk 0:00:11.8]} 37... Kd6 {[%clk 0:01:06.9]} 38. Rg2 {[%clk 0:00:10.4]} 38...
Rc1 {[%clk 0:01:05.3]} 39. Rg7 {[%clk 0:00:06.2]} 39... Ke7 {[%clk 0:01:05.5]}
40. Rh7 {[%clk 0:00:05.9]} 40... Re1 {[%clk 0:01:03.4]} 41. Rxh5 {[%clk
0:00:06.1]} 41... d3 {[%clk 0:01:03.6]} 0-1

[Event "Early-Titled-Tuesday-Blitz-February-06-2024"]
[Site "Chess.com"]
[Date "2024.02.06"]
[Round "2"]
[White "twofoxniel"]
[Black "the_chess_child"]
[Result "1-0"]
[WhiteElo "2625"]
[BlackElo "2885"]
[TimeControl "180+1"]
[EndTime "8:17:12 PST"]
[Termination "twofoxniel won by resignation"]

1. e4 {[%clk 0:03:00.9]} 1... c5 {[%clk 0:02:59.4]} 2. c3 {[%clk 0:03:00.5]}
2... e5 {[%clk 0:02:57.9]} 3. Nf3 {[%clk 0:02:59.7]} 3... Nc6 {[%clk 0:02:57.7]}
4. Bc4 {[%clk 0:03:00.3]} 4... Nf6 {[%clk 0:02:57.1]} 5. Ng5 {[%clk 0:02:51.7]}
5... d5 {[%clk 0:02:56.7]} 6. exd5 {[%clk 0:02:49.7]} 6... Nxd5 {[%clk
0:02:57.6]} 7. d4 {[%clk 0:02:49.9]} 7... cxd4 {[%clk 0:02:55.3]} 8. O-O {[%clk
0:02:49.5]} 8... Be7 {[%clk 0:02:49.9]} 9. Qh5 {[%clk 0:02:43.1]} 9... g6 {[%clk
0:02:37.7]} 10. Qh6 {[%clk 0:02:42.9]} 10... Bf8 {[%clk 0:02:30]} 11. Qh4 {[%clk
0:02:34]} 11... h6 {[%clk 0:02:23]} 12. Qe4 {[%clk 0:02:28.2]} 12... Bf5 {[%clk
0:02:12]} 13. Qxd5 {[%clk 0:02:28.1]} 13... Qxd5 {[%clk 0:02:12.2]} 14. Bxd5
{[%clk 0:02:28]} 14... hxg5 {[%clk 0:02:12.6]} 15. Bxg5 {[%clk 0:02:21.9]} 15...
Be7 {[%clk 0:01:59.9]} 16. Bxe7 {[%clk 0:02:10.6]} 16... Kxe7 {[%clk 0:02:00.8]}
17. cxd4 {[%clk 0:02:10.8]} 17... Nxd4 {[%clk 0:02:00.1]} 18. Nc3 {[%clk
0:02:10.4]} 18... Rab8 {[%clk 0:01:48.7]} 19. f4 {[%clk 0:02:10.4]} 19... Nc2
{[%clk 0:01:42.4]} 20. Rac1 {[%clk 0:02:01.1]} 20... Ne3 {[%clk 0:01:42]} 21.
Rf3 {[%clk 0:01:58.8]} 21... exf4 {[%clk 0:01:34.7]} 22. Rxf4 {[%clk 0:01:58.7]}
22... Nxd5 {[%clk 0:01:13.3]} 23. Nxd5+ {[%clk 0:01:58.6]} 23... Kd6 {[%clk
0:01:13.7]} 24. Ne3 {[%clk 0:01:50.8]} 24... Be6 {[%clk 0:01:12.5]} 25. Rd4+
{[%clk 0:01:35.5]} 25... Ke5 {[%clk 0:01:09.3]} 26. Rb4 {[%clk 0:01:35.5]} 26...
b6 {[%clk 0:01:03.5]} 27. Rc7 {[%clk 0:01:33]} 27... Rbc8 {[%clk 0:01:00.9]} 28.
Rxa7 {[%clk 0:01:25.3]} 28... Rc1+ {[%clk 0:00:46.8]} 29. Kf2 {[%clk 0:01:25.3]}
29... Rd8 {[%clk 0:00:47.4]} 30. Ke2 {[%clk 0:01:13.8]} 30... Rd6 {[%clk
0:00:28]} 31. a4 {[%clk 0:01:03.1]} 31... f5 {[%clk 0:00:24.9]} 32. g3 {[%clk
0:00:50.2]} 32... g5 {[%clk 0:00:23.9]} 33. a5 {[%clk 0:00:44.1]} 33... bxa5
{[%clk 0:00:16.9]} 34. Rxa5+ {[%clk 0:00:43.8]} 34... Kf6 {[%clk 0:00:17.5]} 35.
h4 {[%clk 0:00:40]} 35... gxh4 {[%clk 0:00:15.7]} 36. Rxh4 {[%clk 0:00:40.6]}
36... Rh1 {[%clk 0:00:16.4]} 37. Rxh1 {[%clk 0:00:39.7]} 1-0

[Event "Early-Titled-Tuesday-Blitz-February-06-2024"]
[Site "Chess.com"]
[Date "2024.02.06"]
[Round "2"]
[White "WindWhistler11"]
[Black "Cubitas"]
[Result "0-1"]
[WhiteElo "2503"]
[BlackElo "2722"]
[TimeControl "180+1"]
[EndTime "8:17:12 PST"]
[Termination "Cubitas won on time"]

1. Nf3 {[%clk 0:02:56.8]} 1... Nf6 {[%clk 0:02:59.6]} 2. g3 {[%clk 0:02:54.6]}
2... g6 {[%clk 0:03:00]} 3. Bg2 {[%clk 0:02:54.3]} 3... Bg7 {[%clk 0:03:00.5]}
4. b3 {[%clk 0:02:54]} 4... O-O {[%clk 0:02:58.8]} 5. Bb2 {[%clk 0:02:54.5]}
5... a5 {[%clk 0:02:59.1]} 6. d4 {[%clk 0:02:52.2]} 6... a4 {[%clk 0:02:58.3]}
7. O-O {[%clk 0:02:52.6]} 7... axb3 {[%clk 0:02:56]} 8. axb3 {[%clk 0:02:51.1]}
8... Rxa1 {[%clk 0:02:56.5]} 9. Bxa1 {[%clk 0:02:52]} 9... b6 {[%clk 0:02:53.6]}
10. Ne5 {[%clk 0:02:47.6]} 10... d6 {[%clk 0:02:51.7]} 11. Nd3 {[%clk
0:02:46.5]} 11... c5 {[%clk 0:02:50.5]} 12. dxc5 {[%clk 0:02:35.2]} 12... bxc5
{[%clk 0:02:50.1]} 13. Nd2 {[%clk 0:02:32.5]} 13... Qc7 {[%clk 0:02:42.4]} 14.
e4 {[%clk 0:02:18.7]} 14... Nbd7 {[%clk 0:02:38.6]} 15. Nc4 {[%clk 0:02:17]}
15... Bb7 {[%clk 0:02:30.1]} 16. Re1 {[%clk 0:02:14.7]} 16... Ra8 {[%clk
0:02:21.3]} 17. Bb2 {[%clk 0:02:05.8]} 17... h5 {[%clk 0:02:18.4]} 18. e5 {[%clk
0:01:44.1]} 18... Ng4 {[%clk 0:01:40.6]} 19. e6 {[%clk 0:01:20.3]} 19... Bxg2
{[%clk 0:01:29.4]} 20. exf7+ {[%clk 0:01:04.5]} 20... Kxf7 {[%clk 0:01:21.5]}
21. Bxg7 {[%clk 0:01:03.4]} 21... Qc6 {[%clk 0:01:05.6]} 22. Bb2 {[%clk
0:00:43.5]} 22... Bf3 {[%clk 0:00:48.8]} 23. Qd2 {[%clk 0:00:36.8]} 23... Bh1
{[%clk 0:00:47.6]} 24. f3 {[%clk 0:00:28.2]} 24... Bxf3 {[%clk 0:00:43.5]} 25.
Qf4+ {[%clk 0:00:19.9]} 25... Ndf6 {[%clk 0:00:33]} 26. Bxf6 {[%clk 0:00:16.1]}
26... exf6 {[%clk 0:00:29]} 27. Nxd6+ {[%clk 0:00:06.8]} 27... Kg7 {[%clk
0:00:26.1]} 28. h3 {[%clk 0:00:03.5]} 28... Bh1 {[%clk 0:00:21.2]} 0-1

[Event "Early-Titled-Tuesday-Blitz-February-06-2024"]
[Site "Chess.com"]
[Date "2024.02.06"]
[Round "2"]
[White "Dinosaurio_1975"]
[Black "Jumbo"]
[Result "0-1"]
[WhiteElo "2588"]
[BlackElo "2860"]
[TimeControl "180+1"]
[EndTime "8:17:14 PST"]
[Termination "Jumbo won on time"]

1. e4 {[%clk 0:03:00.9]} 1... c5 {[%clk 0:02:58.9]} 2. Nf3 {[%clk 0:03:00.7]}
2... d6 {[%clk 0:02:59]} 3. Bb5+ {[%clk 0:03:00.8]} 3... Nd7 {[%clk 0:02:56.4]}
4. c3 {[%clk 0:03:00.5]} 4... Nf6 {[%clk 0:02:55.7]} 5. Bd3 {[%clk 0:02:59.7]}
5... g6 {[%clk 0:02:51.4]} 6. Bc2 {[%clk 0:02:59.5]} 6... Bg7 {[%clk 0:02:51.9]}
7. d4 {[%clk 0:03:00.1]} 7... O-O {[%clk 0:02:52.2]} 8. O-O {[%clk 0:03:00]}
8... b5 {[%clk 0:02:38.2]} 9. e5 {[%clk 0:02:59.3]} 9... Ne8 {[%clk 0:02:37.8]}
10. Re1 {[%clk 0:02:28.4]} 10... cxd4 {[%clk 0:02:06.2]} 11. cxd4 {[%clk
0:02:27.1]} 11... Nb6 {[%clk 0:02:06.4]} 12. Nc3 {[%clk 0:02:10]} 12... b4
{[%clk 0:02:05.8]} 13. Ne4 {[%clk 0:02:09.3]} 13... Bg4 {[%clk 0:01:55.3]} 14.
Bf4 {[%clk 0:01:45.8]} 14... Rc8 {[%clk 0:01:48.3]} 15. Bb3 {[%clk 0:01:41.6]}
15... dxe5 {[%clk 0:01:36]} 16. dxe5 {[%clk 0:01:39.4]} 16... Qxd1 {[%clk
0:01:35.5]} 17. Raxd1 {[%clk 0:01:40.3]} 17... Nc7 {[%clk 0:01:28.1]} 18. h3
{[%clk 0:01:30.4]} 18... Bxf3 {[%clk 0:01:27.5]} 19. gxf3 {[%clk 0:01:31.3]}
19... Rfd8 {[%clk 0:01:01.3]} 20. Bg5 {[%clk 0:00:40]} 20... Kf8 {[%clk
0:00:51.7]} 21. Rxd8+ {[%clk 0:00:29.6]} 21... Rxd8 {[%clk 0:00:51]} 22. Nd6
{[%clk 0:00:25.4]} 22... Ncd5 {[%clk 0:00:26.7]} 23. Rd1 {[%clk 0:00:14.9]}
23... h6 {[%clk 0:00:21.9]} 24. Bxd5 {[%clk 0:00:08.6]} 24... hxg5 {[%clk
0:00:18.8]} 25. Nxf7 {[%clk 0:00:01.8]} 25... Rxd5 {[%clk 0:00:18.7]} 26. Rxd5
{[%clk 0:00:01.4]} 26... Nxd5 {[%clk 0:00:19.6]} 27. Nxg5 {[%clk 0:00:02.2]}
27... Bxe5 {[%clk 0:00:20]} 28. b3 {[%clk 0:00:02.5]} 28... Nf4 {[%clk
0:00:18.8]} 0-1

[Event "Early-Titled-Tuesday-Blitz-February-06-2024"]
[Site "Chess.com"]
[Date "2024.02.06"]
[Round "2"]
[White "DeArron_Fox"]
[Black "Mackster23"]
[Result "0-1"]
[WhiteElo "2473"]
[BlackElo "2714"]
[TimeControl "180+1"]
[EndTime "8:17:14 PST"]
[Termination "Mackster23 won on time"]

1. d4 {[%clk 0:03:00.9]} 1... Nf6 {[%clk 0:02:59.8]} 2. c4 {[%clk 0:03:01.4]}
2... e6 {[%clk 0:03:00]} 3. Nf3 {[%clk 0:03:01.7]} 3... d5 {[%clk 0:03:00.1]} 4.
e3 {[%clk 0:03:02.1]} 4... c5 {[%clk 0:02:50.1]} 5. Nc3 {[%clk 0:03:00.1]} 5...
Nc6 {[%clk 0:02:50]} 6. cxd5 {[%clk 0:02:56.8]} 6... Nxd5 {[%clk 0:02:49.7]} 7.
Bd3 {[%clk 0:02:56.1]} 7... cxd4 {[%clk 0:02:44.9]} 8. exd4 {[%clk 0:02:55.9]}
8... Be7 {[%clk 0:02:45]} 9. O-O {[%clk 0:02:56.1]} 9... O-O {[%clk 0:02:44.6]}
10. Re1 {[%clk 0:02:49.3]} 10... Bf6 {[%clk 0:02:43.4]} 11. a3 {[%clk
0:00:44.9]} 11... b6 {[%clk 0:02:24.3]} 12. Nxd5 {[%clk 0:00:41.1]} 12... exd5
{[%clk 0:02:19.1]} 13. Qc2 {[%clk 0:00:37]} 13... Nxd4 {[%clk 0:02:11]} 14. Nxd4
{[%clk 0:00:37.9]} 14... Bxd4 {[%clk 0:02:11.5]} 15. Bxh7+ {[%clk 0:00:37.3]}
15... Kh8 {[%clk 0:02:12.2]} 16. Rd1 {[%clk 0:00:09]} 16... Qf6 {[%clk
0:01:47.4]} 17. Bd3 {[%clk 0:00:05.4]} 17... Bg4 {[%clk 0:01:45.9]} 18. Rf1
{[%clk 0:00:04.3]} 18... Rac8 {[%clk 0:01:45.7]} 19. Qa4 {[%clk 0:00:02.2]}
19... Rfe8 {[%clk 0:01:13.6]} 20. Be3 {[%clk 0:00:02.4]} 20... Bxe3 {[%clk
0:01:05.2]} 21. Qxg4 {[%clk 0:00:03.3]} 21... Bh6 {[%clk 0:01:04.7]} 22. g3
{[%clk 0:00:02.5]} 22... Qxb2 {[%clk 0:01:01.5]} 23. Qf5 {[%clk 0:00:02.3]}
23... g6 {[%clk 0:00:53.6]} 24. Qxf7 {[%clk 0:00:02.6]} 24... Qg7 {[%clk
0:00:53.2]} 25. Qxg6 {[%clk 0:00:02.3]} 25... Qxg6 {[%clk 0:00:53.4]} 26. Bxg6
{[%clk 0:00:03.2]} 26... Re2 {[%clk 0:00:53.3]} 27. Rad1 {[%clk 0:00:03.3]}
27... Rd8 {[%clk 0:00:50.1]} 28. Rd3 {[%clk 0:00:02.2]} 28... Kg7 {[%clk
0:00:43.7]} 29. Bh5 {[%clk 0:00:02.1]} 29... Re5 {[%clk 0:00:43.7]} 30. Bf3
{[%clk 0:00:01.9]} 30... d4 {[%clk 0:00:28.5]} 31. Rfd1 {[%clk 0:00:02.2]} 31...
Ra5 {[%clk 0:00:29]} 32. Kg2 {[%clk 0:00:01.8]} 32... Kf7 {[%clk 0:00:27.6]} 33.
Bh5+ {[%clk 0:00:01.7]} 33... Rxh5 {[%clk 0:00:26.1]} 0-1

[Event "Early-Titled-Tuesday-Blitz-February-06-2024"]
[Site "Chess.com"]
[Date "2024.02.06"]
[Round "2"]
[White "FlemingA"]
[Black "NtcPou"]
[Result "1-0"]
[WhiteElo "2419"]
[BlackElo "2017"]
[TimeControl "180+1"]
[EndTime "8:17:15 PST"]
[Termination "FlemingA won on time"]

1. g3 {[%clk 0:03:00.9]} 1... d5 {[%clk 0:02:59]} 2. Bg2 {[%clk 0:02:59.3]} 2...
Nf6 {[%clk 0:02:52.2]} 3. b3 {[%clk 0:02:58.7]} 3... Bf5 {[%clk 0:02:47.7]} 4.
Bb2 {[%clk 0:02:59]} 4... e6 {[%clk 0:02:48]} 5. Nf3 {[%clk 0:02:59.3]} 5... Be7
{[%clk 0:02:43.5]} 6. d3 {[%clk 0:02:59.4]} 6... O-O {[%clk 0:02:43.5]} 7. O-O
{[%clk 0:02:59.4]} 7... h6 {[%clk 0:02:43.7]} 8. Nbd2 {[%clk 0:02:58.9]} 8... c5
{[%clk 0:02:43.5]} 9. Re1 {[%clk 0:02:56.3]} 9... Bh7 {[%clk 0:02:42.8]} 10. e4
{[%clk 0:02:56.3]} 10... Nc6 {[%clk 0:02:39]} 11. Qe2 {[%clk 0:02:48.8]} 11...
Re8 {[%clk 0:00:50.2]} 12. e5 {[%clk 0:02:46]} 12... Nd7 {[%clk 0:00:49.7]} 13.
h4 {[%clk 0:02:46.4]} 13... f6 {[%clk 0:00:45.9]} 14. Bh3 {[%clk 0:02:22.9]}
14... Nf8 {[%clk 0:00:44.5]} 15. a3 {[%clk 0:02:12.9]} 15... fxe5 {[%clk
0:00:44.6]} 16. Nxe5 {[%clk 0:02:13.8]} 16... Nxe5 {[%clk 0:00:44.8]} 17. Bxe5
{[%clk 0:02:08.7]} 17... Bf6 {[%clk 0:00:44]} 18. Nf3 {[%clk 0:02:05.7]} 18...
Bf5 {[%clk 0:00:31.9]} 19. Bg2 {[%clk 0:02:01.5]} 19... Bg4 {[%clk 0:00:31.1]}
20. Qe3 {[%clk 0:01:57.4]} 20... Nd7 {[%clk 0:00:30.5]} 21. Bxf6 {[%clk
0:01:34.1]} 21... Qxf6 {[%clk 0:00:29.6]} 22. Ne5 {[%clk 0:01:31.8]} 22... Nxe5
{[%clk 0:00:28.5]} 23. Qxe5 {[%clk 0:01:32.7]} 23... Rac8 {[%clk 0:00:20.3]} 24.
Re3 {[%clk 0:01:07.3]} 24... Qxe5 {[%clk 0:00:18.4]} 25. Rxe5 {[%clk 0:01:07.1]}
25... Kf7 {[%clk 0:00:17.9]} 26. Rae1 {[%clk 0:01:06.1]} 26... Bf5 {[%clk
0:00:04.4]} 27. Bf3 {[%clk 0:01:01.3]} 27... Rc6 {[%clk 0:00:03.8]} 28. Bh5+
{[%clk 0:01:00.6]} 28... g6 {[%clk 0:00:03.6]} 29. Bf3 {[%clk 0:01:01.1]} 29...
h5 {[%clk 0:00:04.1]} 30. Bxd5 {[%clk 0:00:55.3]} 30... exd5 {[%clk 0:00:04.2]}
31. Rxe8 {[%clk 0:00:56.2]} 31... Be6 {[%clk 0:00:03.4]} 32. Rb8 {[%clk
0:00:46.9]} 32... Rc7 {[%clk 0:00:03.7]} 33. a4 {[%clk 0:00:39.9]} 33... c4
{[%clk 0:00:03.3]} 34. d4 {[%clk 0:00:27.3]} 34... cxb3 {[%clk 0:00:01.8]} 35.
cxb3 {[%clk 0:00:28.2]} 1-0

[Event "Early-Titled-Tuesday-Blitz-February-06-2024"]
[Site "Chess.com"]
[Date "2024.02.06"]
[Round "2"]
[White "SahibSinghKnight"]
[Black "shimastream"]
[Result "0-1"]
[WhiteElo "2649"]
[BlackElo "3029"]
[TimeControl "180+1"]
[EndTime "8:17:18 PST"]
[Termination "shimastream won by resignation"]

1. e4 {[%clk 0:03:00.9]} 1... d5 {[%clk 0:02:59.4]} 2. exd5 {[%clk 0:02:56.3]}
2... Qxd5 {[%clk 0:03:00.3]} 3. Nc3 {[%clk 0:02:55.6]} 3... Qe5+ {[%clk
0:03:00.1]} 4. Be2 {[%clk 0:02:53.2]} 4... Bg4 {[%clk 0:02:59.2]} 5. d4 {[%clk
0:02:53.1]} 5... Bxe2 {[%clk 0:02:58.7]} 6. Ngxe2 {[%clk 0:02:51.9]} 6... Qa5
{[%clk 0:02:58.3]} 7. O-O {[%clk 0:02:48]} 7... Nf6 {[%clk 0:02:57.6]} 8. a4
{[%clk 0:02:38.1]} 8... Nc6 {[%clk 0:02:34.5]} 9. Nb5 {[%clk 0:02:35]} 9... a6
{[%clk 0:02:30.8]} 10. Bd2 {[%clk 0:02:14.2]} 10... Qb6 {[%clk 0:02:29.5]} 11.
Na3 {[%clk 0:01:23.3]} 11... Nxd4 {[%clk 0:02:28]} 12. Be3 {[%clk 0:00:54.9]}
12... Nxe2+ {[%clk 0:02:26.9]} 13. Qxe2 {[%clk 0:00:55.8]} 13... Qc6 {[%clk
0:02:26]} 14. Rad1 {[%clk 0:00:50.3]} 14... e6 {[%clk 0:02:25.1]} 15. Nc4 {[%clk
0:00:45.9]} 15... Qxa4 {[%clk 0:02:10.4]} 16. Rd4 {[%clk 0:00:22.1]} 16... Qb5
{[%clk 0:02:07.6]} 17. Ra1 {[%clk 0:00:19.6]} 17... Qh5 {[%clk 0:01:39.3]} 18.
g4 {[%clk 0:00:19.3]} 18... Qh3 {[%clk 0:01:38.4]} 19. Bg5 {[%clk 0:00:11.6]}
19... Be7 {[%clk 0:01:20.2]} 20. Ne5 {[%clk 0:00:10.3]} 20... h6 {[%clk
0:00:44.5]} 21. Rd3 {[%clk 0:00:07.5]} 21... hxg5 {[%clk 0:00:44.7]} 22. Rxh3
{[%clk 0:00:07.2]} 22... Rxh3 {[%clk 0:00:45.6]} 23. f3 {[%clk 0:00:07.2]} 23...
Bd6 {[%clk 0:00:45.3]} 24. Kg2 {[%clk 0:00:05.6]} 24... Nd5 {[%clk 0:00:44.4]}
25. Qe4 {[%clk 0:00:04.7]} 25... Nf4+ {[%clk 0:00:36.3]} 26. Kg1 {[%clk
0:00:05.2]} 26... Ke7 {[%clk 0:00:36.9]} 27. Qxb7 {[%clk 0:00:04.8]} 27... Rah8
{[%clk 0:00:37.5]} 28. Nc6+ {[%clk 0:00:04.9]} 28... Kf6 {[%clk 0:00:37.7]} 29.
Qa7 {[%clk 0:00:04]} 29... Rxh2 {[%clk 0:00:32.5]} 30. Rxa6 {[%clk 0:00:03.2]}
30... Rg2+ {[%clk 0:00:21]} 31. Kf1 {[%clk 0:00:03.1]} 31... Rh1+ {[%clk
0:00:21.6]} 0-1

[Event "Early-Titled-Tuesday-Blitz-February-06-2024"]
[Site "Chess.com"]
[Date "2024.02.06"]
[Round "2"]
[White "GoValya"]
[Black "goodwilll"]
[Result "0-1"]
[WhiteElo "2276"]
[BlackElo "2500"]
[TimeControl "180+1"]
[EndTime "8:17:18 PST"]
[Termination "goodwilll won on time"]

1. d4 {[%clk 0:03:00.9]} 1... d5 {[%clk 0:02:58.8]} 2. g3 {[%clk 0:02:59.2]}
2... Nf6 {[%clk 0:02:58.3]} 3. Bg2 {[%clk 0:02:59.6]} 3... c6 {[%clk 0:02:58.7]}
4. c4 {[%clk 0:02:57.6]} 4... e6 {[%clk 0:02:49.7]} 5. Nf3 {[%clk 0:02:56.9]}
5... dxc4 {[%clk 0:02:48.1]} 6. O-O {[%clk 0:02:54]} 6... b5 {[%clk 0:02:47.4]}
7. Ne5 {[%clk 0:02:47.6]} 7... Bb7 {[%clk 0:02:44.5]} 8. Nc3 {[%clk 0:02:32.4]}
8... Nd5 {[%clk 0:02:38.1]} 9. e4 {[%clk 0:02:21.5]} 9... Nxc3 {[%clk
0:02:35.6]} 10. bxc3 {[%clk 0:02:22.4]} 10... Nd7 {[%clk 0:02:28.6]} 11. f4
{[%clk 0:02:20.6]} 11... Be7 {[%clk 0:02:06.1]} 12. Rb1 {[%clk 0:02:00.8]} 12...
Qc7 {[%clk 0:01:54.7]} 13. Nxf7 {[%clk 0:01:45.6]} 13... Kxf7 {[%clk 0:01:52.8]}
14. f5 {[%clk 0:01:44.5]} 14... e5 {[%clk 0:01:46]} 15. d5 {[%clk 0:01:22.3]}
15... Bc5+ {[%clk 0:01:36.8]} 16. Kh1 {[%clk 0:01:21.6]} 16... Nf6 {[%clk
0:01:35.5]} 17. g4 {[%clk 0:01:14.8]} 17... h6 {[%clk 0:01:22.3]} 18. g5 {[%clk
0:00:53.2]} 18... hxg5 {[%clk 0:01:21.1]} 19. Bxg5 {[%clk 0:00:54.1]} 19... Rad8
{[%clk 0:00:56.3]} 20. Qe2 {[%clk 0:00:49.2]} 20... cxd5 {[%clk 0:00:53.8]} 21.
Rxb5 {[%clk 0:00:36.5]} 21... Nxe4 {[%clk 0:00:43.4]} 22. Bxe4 {[%clk
0:00:12.3]} 22... dxe4 {[%clk 0:00:44.3]} 23. Be3 {[%clk 0:00:07.8]} 23... Bb6
{[%clk 0:00:29.4]} 24. Bxb6 {[%clk 0:00:04.6]} 24... axb6 {[%clk 0:00:19.5]} 25.
Kg1 {[%clk 0:00:03.9]} 25... Rh6 {[%clk 0:00:15.5]} 26. Qg4 {[%clk 0:00:02.3]}
26... e3 {[%clk 0:00:12.7]} 0-1